[Event "Stay Safe Play From Home 237"]
[Site "Emanuel Lasker Arena"]
[Date "2020.06.18"]
[Round "8"]
[White "matanant"]
[Black "BrainThinker22"]
[Result "0-1"]
[WhiteElo "1794"]
[BlackElo "2104"]
[Annotator "NA RC"]
[PlyCount "42"]
[EventDate "2020.06.18"]
[EventType "swiss (blitz)"]
[TimeControl "180"]

1. b3 {[%emt 0:00:04]} e5 {[%emt 0:00:02]} 2. Bb2 {[%emt 0:00:00]} Nc6 {[%emt 0:00:01]} 3. e3 {[%emt 0:00:01]} g6 {[%emt 0:00:01]} 4. f4 {[%emt 0:00:01]} Bg7 {[%emt 0:00:01]} 5. Nf3 {[%emt 0:00:01]} d6 {[%emt 0:00:01]} 6. Bb5 {[%emt 0:00:03]} Nge7 {[%emt 0:00:05]} 7. O-O {[%emt 0:00:03]} O-O {[%emt 0:00:03]} 8. fxe5 {[%emt 0:00:03]} dxe5 {[%emt 0:00:02]} 9. d3 {[%emt 0:00:11]} e4 {[%emt 0:00:19]} 10. Bxg7 {[%emt 0:00:03]} exf3 {[%emt 0:00:01]} 11. Bxf8 {[%emt 0:00:03]} fxg2 {[%emt 0:00:01]} 12. Kxg2 {[%emt 0:00:02]} Qxf8 {[%emt 0:00:05]} 13. Bc4 {[%emt 0:00:05]} Ne5 {[%emt 0:00:04]} 14. Nd2 {[%emt 0:00:08]} Qh6 {[%emt 0:00:05]} 15. Nf3 {[%emt 0:00:14]} Bg4 {[%emt 0:00:09]} 16. Bxf7+ {[%emt 0:00:15]} Nxf7 {[%emt 0:00:04]} 17. Qe1 {[%emt 0:00:07]} Qh3+ {[%emt 0:00:06]} 18. Kg1 {[%emt 0:00:03]} Bxf3 {[%emt 0:00:01]} 19. Qf2 {[%emt 0:00:02]} Ng5 {[%emt 0:00:07]} 20. e4 {[%emt 0:00:07]} Qg4+ {[%emt 0:00:02]} 21. Qg3 {[%emt 0:00:03]} Nh3# {[%emt 0:00:00] (Lag: Av=0.67s, max=1.0s)} 0-1